bitfinex-derivatives/quotes_SOLF0:USTF0_20240815
["timestamp","ask_amount","ask_price","bid_price","bid_amount"]
[1723733157930,3.4466,145.06,145.05,0.04404432]
[1723733159227,33.09,145.06,144.98,4.94]
[1723733159630,33.09,145.06,145.01,3.4477]
[1723733159831,36.46470558,145.06,145.01,3.4477]
[1723733160130,33.09,145.06,145.01,3.4477]
[1723733160325,0.04763271,145.05,145.02,0.05142771]
[1723733161934,3.4474,145.03,145.02,0.05142771]
[1723733163031,3.4482,145.0,144.96,34.7251]
[1723733163333,33.09,145.04,144.96,34.7251]
[1723733163334,38.03,145.04,144.96,34.7251]
[1723733163533,3.4479,145.01,144.96,34.7251]
[1723733163834,38.03,145.04,144.96,34.7251]
[1723733164233,0.04343163,145.01,144.99,3.49205334]
[1723733164440,0.04343163,145.01,144.99,0.04395334]
[1723733164740,3.4481,145.0,144.99,0.04395334]
[1723733164941,33.09,145.0,144.91,26.69317828]
[1723733165126,33.09,144.98,144.9,33.09]
[1723733165330,3.4491,144.96,144.9,33.09]
[1723733165525,33.09,144.98,144.89,9.8987]
[1723733165734,33.09,144.96,144.89,9.8987]
[1723733165942,33.09,144.96,144.87,59.79006972]
[1723733166142,33.09,144.94,144.87,26.70006972]
[1723733166337,3.4499,144.93,144.89,3.4505]
[1723733166633,3.4499,144.93,144.87,33.09]
[1723733166833,4.98689415,144.94,144.91,0.04489432]
[1723733169638,0.04689415,144.94,144.91,0.04489432]
[1723733169838,3.49639415,144.94,144.91,3.49489432]
[1723733170237,0.04689415,144.94,144.91,0.04489432]
[1723733170537,0.04689415,144.94,144.92,3.3762409]
[1723733170733,0.04689415,144.94,144.93,33.09]
[1723733171139,0.04689415,144.94,144.93,36.5397]
[1723733172333,0.04689415,144.94,144.93,40.05221877]
[1723733172539,0.04689415,144.94,144.93,36.5397]
[1723733172745,0.04689415,144.94,144.93,3.4497]
[1723733173037,0.04689415,144.94,144.92,3.4499]
[1723733173242,0.04689415,144.94,144.91,37.98439432]
[1723733173739,0.04689415,144.94,144.92,3.45]
[1723733175442,0.04689415,144.94,144.93,3.4497]
[1723733175840,0.04689415,144.94,144.91,34.70319432]
[1723733176140,0.04689415,144.94,144.92,3.4498]
[1723733176538,0.04689415,144.94,144.93,3.4497]
[1723733179443,0.04689415,144.94,144.91,1.61319432]
[1723733180539,3.49649415,144.94,144.91,3.49499432]
[1723733183149,0.04689415,144.94,144.91,33.13489432]
[1723733185049,0.04689415,144.94,144.93,3.4497]
[1723733185842,0.04689415,144.94,144.93,36.5397]
[1723733186044,4.6254,145.03,144.93,33.09]
[1723733186344,3.47962166,145.06,144.98,33.09]
[1723733186643,101.5363246,145.07,145.0,3.4479]
[1723733186849,3.4475,145.03,145.0,3.4479]
[1723733187245,0.0468379,145.03,145.01,3.4478]
[1723733187442,3.4942379,145.03,145.01,3.4478]
[1723733187847,0.0468379,145.03,145.0,3.492349]
[1723733188041,0.0468379,145.03,145.0,0.044349]
[1723733189054,3.4477,145.02,145.0,0.044349]
[1723733189251,0.0468379,145.03,145.0,0.044349]
[1723733190441,0.0468379,145.03,145.0,3.492249]
[1723733191247,0.0468379,145.03,145.01,3.4478]
[1723733191455,0.0468379,145.03,145.0,0.044349]
[1723733191753,3.4943379,145.03,145.0,0.044349]
[1723733192343,0.0468379,145.03,145.0,0.044349]
[1723733192549,0.0468379,145.03,145.01,33.09]
[1723733192748,0.0468379,145.03,145.02,3.4476]
[1723733199451,36.4673,145.12,145.02,33.09]
[1723733199856,3.4459,145.09,145.02,33.09]
[1723733200048,36.4673,145.12,145.06,3.4464]
[1723733200253,36.4673,145.12,145.04,33.09]
[1723733200751,36.4673,145.12,145.07,0.0438344]
[1723733200956,0.0477642,145.09,145.07,3.4901344]
[1723733201155,0.0477642,145.09,145.07,0.0438344]
[1723733201557,0.0477642,145.09,145.08,3.4462]
[1723733204361,0.0477642,145.09,145.08,36.5362]
[1723733204550,0.0477642,145.09,145.08,38.122]
[1723733205056,0.0477642,145.09,145.08,41.59225983]
[1723733205560,0.0477642,145.09,145.08,5.032]
[1723733206956,0.0477642,145.09,145.08,41.59694707]
[1723733207260,0.0477642,145.09,145.08,38.122]
[1723733209961,0.0477642,145.09,145.08,41.50024538]
[1723733212162,4.94,145.18,145.08,38.05404538]
[1723733212362,4.94,145.18,145.1,33.09]
[1723733212567,3.4445,145.16,145.1,33.09]
[1723733212765,3.4445,145.16,145.12,3.445]
[1723733212965,3.4445,145.16,145.1,33.09]
[1723733213164,33.09,145.2,145.14,3.4446]
[1723733213364,0.045004,145.14,145.12,0.05035772]
[1723733213568,36.48157039,145.2,145.1,33.09]
[1723733213770,0.04710745,145.14,145.12,0.05031191]
[1723733214160,3.444,145.18,145.12,0.05031191]
[1723733214571,3.444,145.18,145.14,3.4446]
[1723733215070,0.04767166,145.16,145.14,3.4446]
[1723733215369,0.04767166,145.16,145.13,3.4449]
[1723733215766,0.04767166,145.16,145.12,0.05031191]
[1723733215767,33.13767166,145.16,145.12,0.05031191]
[1723733215973,3.445,145.13,145.12,0.05031191]
[1723733216770,0.04767166,145.16,145.12,0.05031191]
[1723733217365,3.4449,145.14,145.12,0.05031191]
[1723733218070,3.4448,145.14,145.12,0.05031191]
[1723733218869,0.04767166,145.16,145.12,0.05031191]
[1723733219370,3.49207166,145.16,145.13,3.4448]
[1723733220072,3.49207166,145.16,145.12,0.05031191]
[1723733220073,3.49207166,145.16,145.14,3.4447]
[1723733220268,0.04767166,145.16,145.14,3.4447]
[1723733220465,0.04767166,145.16,145.15,3.4445]
[1723733223473,34.7521,145.24,145.19,3.4433]
[1723733223774,34.7521,145.24,145.15,33.09]
[1723733224076,3.4431,145.21,145.15,33.09]
[1723733224576,3.4431,145.21,145.18,3.4437]
[1723733224879,1.6621,145.24,145.17,33.1358532]
[1723733225071,1.6621,145.24,145.17,36.57283729]
[1723733225369,108.49789096,145.26,145.17,33.1358532]
[1723733225370,3.4427,145.23,145.17,33.1358532]
[1723733225569,3.4427,145.23,145.17,36.55837592]
[1723733225766,3.4427,145.23,145.2,3.4433]
[1723733226173,3.4429,145.22,145.17,33.1358532]
[1723733226368,3.4429,145.22,145.19,3.4434]
[1723733227088,78.83730005,145.26,145.18,0.04661761]
[1723733227672,33.09,145.37,145.18,0.04661761]
[1723733227673,55.71469367,145.33,145.21,33.09]
[1723733227967,55.71469367,145.33,145.23,33.09]
[1723733227968,4.92,145.3,145.23,33.09]
[1723733228475,3.1314,145.32,145.26,0.05149913]
[1723733228476,36.2214,145.32,145.26,0.05149913]
[1723733229173,3.4406,145.32,145.26,33.14149913]
[1723733229573,3.4404,145.33,145.3,3.4408]
[1723733229775,38.01,145.36,145.3,3.4408]
[1723733229978,38.01,145.36,145.28,33.09]
[1723733229979,4.92,145.36,145.28,33.09]
[1723733230165,3.4402,145.34,145.3,3.4409]
[1723733230474,3.4402,145.34,145.32,0.05297103]
[1723733230675,38.01,145.36,145.32,0.05297103]
[1723733230881,3.4402,145.33,145.32,0.05297103]
[1723733231779,3.4401,145.34,145.32,0.05297103]
[1723733231973,4.92,145.36,145.32,3.49327103]
[1723733232282,1.5986,145.37,145.32,3.49327103]
[1723733232572,3.4399,145.35,145.32,3.49327103]
[1723733232977,3.4402,145.33,145.32,0.05297103]
[1723733235082,3.4401,145.34,145.32,0.05297103]
[1723733237078,3.4402,145.33,145.32,0.05297103]
[1723733238079,3.4401,145.34,145.32,0.05297103]
[1723733238476,34.6886,145.37,145.32,3.49337103]
[1723733238782,3.4399,145.35,145.32,3.49337103]
[1723733238983,34.6886,145.37,145.32,3.49337103]
[1723733239184,3.4399,145.35,145.32,3.49337103]
[1723733242382,3.4396,145.36,145.32,0.05297103]
[1723733242591,3.4396,145.36,145.32,33.14297103]
[1723733242780,113.18820299,145.4,145.32,0.05297103]
[1723733242976,33.09,145.38,145.32,0.05297103]
[1723733243384,3.4402,145.33,145.32,0.05297103]
[1723733244484,3.4401,145.34,145.32,0.05297103]
[1723733244791,4.92,145.37,145.32,0.05297103]
[1723733244991,3.4399,145.35,145.32,0.05297103]
[1723733245686,3.4399,145.35,145.32,3.49327103]
[1723733246292,108.26820299,145.4,145.32,33.14297103]
[1723733246293,76.65122095,145.4,145.32,33.14297103]
[1723733246589,3.4394,145.37,145.32,33.14297103]
[1723733246785,76.65122095,145.4,145.32,33.14297103]
[1723733246987,76.65122095,145.4,145.35,3.4396]
[1723733247490,76.65122095,145.4,145.36,0.05257171]
[1723733247793,3.4392,145.38,145.36,3.49207171]
[1723733247990,70.05972095,145.4,145.36,3.49207171]
[1723733248193,3.4389,145.39,145.37,3.4392]
[1723733248486,1.6404,145.42,145.36,33.14257171]
[1723733248890,3.4384,145.41,145.36,33.14257171]
[1723733249588,3.4384,145.41,145.38,3.4388]
[1723733249987,1.6495,145.47,145.38,33.09]
[1723733250290,6.5495,145.47,145.41,3.4382]
[1723733250489,6.5495,145.47,145.38,33.09]
[1723733250789,39.6395,145.47,145.43,0.05011622]
[1723733250991,3.4376,145.44,145.43,0.05011622]
[1723733253401,3.4375,145.45,145.43,0.05011622]
[1723733253604,6.5495,145.47,145.43,0.05011622]
[1723733253802,33.09,145.46,145.43,0.05011622]
[1723733253995,3.4376,145.44,145.43,0.05011622]
[1723733255002,33.09,145.45,145.34,33.09]
[1723733255201,33.09,145.41,145.34,3.4398]
[1723733255503,3.4393,145.37,145.33,1.5567]
[1723733256005,3.4392,145.38,145.33,34.6467]
[1723733256306,37.99,145.41,145.34,3.49012763]
[1723733256307,0.04507756,145.36,145.34,3.49012763]
[1723733256510,3.48477756,145.36,145.34,0.05022763]
[1723733256701,37.99,145.41,145.34,0.05022763]
[1723733257098,37.99,145.41,145.35,3.4397]
[1723733257099,0.04671185,145.36,145.35,3.4397]
[1723733257305,0.04671185,145.36,145.34,0.05022763]
[1723733257504,37.99,145.41,145.34,3.49012763]
[1723733257797,0.05011622,145.36,145.34,3.49012763]
[1723733258002,4.9,145.41,145.34,0.05022763]
[1723733258303,1.5313,145.44,145.37,33.09]
[1723733258304,6.4313,145.44,145.37,33.09]
[1723733258512,0.05011622,145.39,145.37,33.09]
[1723733258706,3.4388,145.39,145.35,33.09]
[1723733259004,3.48383279,145.39,145.37,0.04842442]
[1723733259507,0.04503279,145.39,145.37,0.04842442]
[1723733259708,0.04503279,145.39,145.37,33.13842442]
[1723733259909,0.04503279,145.39,145.38,3.4391]
[1723733260212,0.04503279,145.39,145.37,33.13842442]
[1723733260603,0.04503279,145.39,145.37,36.57752442]
[1723733260799,0.04503279,145.39,145.37,33.13842442]
[1723733261407,0.04503279,145.39,145.37,36.57762442]
[1723733261607,0.04503279,145.39,145.37,33.13842442]
[1723733261810,0.04503279,145.39,145.38,3.4391]
[1723733262309,0.04503279,145.39,145.38,6.86873361]
[1723733263112,0.04503279,145.39,145.38,3.4391]
[1723733263505,0.04503279,145.39,145.37,33.13842442]
[1723733264511,0.04503279,145.39,145.38,3.4391]
[1723733264810,0.04503279,145.39,145.38,6.92304195]
[1723733265006,4.9,145.45,145.38,3.48394195]
[1723733265007,3.4378,145.44,145.38,3.48394195]
[1723733265311,3.4378,145.44,145.4,33.09]
[1723733265513,3.4378,145.44,145.41,3.4382]
[1723733265812,1.6495,145.47,145.4,33.09]
[1723733266327,1.6495,145.47,145.42,3.48938826]
[1723733266504,37.99,145.49,145.42,0.05128826]
[1723733266908,37.99,145.49,145.43,3.4379]
[1723733267107,37.99,145.49,145.42,0.05128826]
[1723733267507,37.99,145.49,145.43,3.4379]
[1723733267703,6.882,145.58,145.44,33.09]
[1723733267904,6.882,145.58,145.46,33.09]
[1723733267905,6.882,145.54,145.46,33.09]
[1723733268104,3.4365,145.49,145.47,3.4368]
[1723733268707,6.882,145.54,145.49,0.05157416]
[1723733269304,6.882,145.54,145.46,33.09]
[1723733269712,3.4365,145.49,145.46,36.527]
[1723733270007,33.09,145.53,145.42,3.44347352]
[1723733270313,3.437,145.47,145.44,3.4375]
[1723733270614,3.437,145.47,145.46,0.04957197]
[1723733270812,33.09,145.53,145.46,0.04957197]
[1723733271115,6.882,145.54,145.46,0.04957197]
[1723733271311,6.882,145.54,145.47,3.4368]
[1723733271312,3.4364,145.5,145.47,3.4368]
[1723733271506,6.882,145.54,145.47,3.4368]
[1723733271716,6.882,145.54,145.46,0.04957197]
[1723733271910,6.882,145.54,145.47,33.09]
[1723733272104,6.882,145.54,145.47,36.51476111]
[1723733272303,6.882,145.54,145.47,33.09]
[1723733272507,3.4361,145.51,145.48,3.4366]
[1723733272714,6.882,145.54,145.49,0.04981303]
[1723733272912,3.4362,145.5,145.49,0.04981303]
[1723733274918,3.4375,145.45,145.41,36.2638]
[1723733275112,3.4375,145.45,145.43,3.4378]
[1723733275415,33.09,145.52,145.43,33.09]
[1723733275714,33.09,145.52,145.44,3.4375]
[1723733275905,33.09,145.52,145.43,33.09]
[1723733276108,3.4371,145.47,145.43,33.09]
[1723733276304,3.4371,145.47,145.44,3.4376]
[1723733276716,3.4371,145.47,145.44,3.49012274]
[1723733277214,0.04403798,145.49,145.44,3.49012274]
[1723733277215,33.09,145.48,145.44,0.05252274]
[1723733277510,3.4374,145.45,145.44,0.05252274]
[1723733278316,3.4372,145.46,145.44,0.05252274]
[1723733278516,37.99,145.5,145.44,0.05252274]
[1723733278914,3.4374,145.45,145.44,0.05252274]
[1723733280412,3.48616087,145.46,145.44,0.05252274]
[1723733280614,0.04876087,145.46,145.44,33.14252274]
[1723733281017,0.04876087,145.46,145.45,3.4374]
[1723733284717,0.04876087,145.46,145.44,41.47992274]
[1723733285723,0.04876087,145.46,145.45,3.4374]
[1723733285921,0.04876087,145.46,145.44,38.04252274]
[1723733286524,0.04876087,145.46,145.44,4.95252274]
[1723733286923,0.04876087,145.46,145.44,38.04252274]
[1723733287819,0.04876087,145.46,145.45,3.4374]
[1723733288315,1.6582,145.55,145.48,3.4365]
[1723733288517,3.4359,145.52,145.48,36.5265]
[1723733288718,3.4359,145.52,145.48,33.09]
[1723733289325,3.4359,145.52,145.49,3.4364]
[1723733289629,3.4355,145.53,145.5,33.09]
[1723733290230,3.4358,145.52,145.5,33.09]
[1723733290527,37.99,145.57,145.49,3.4364]
[1723733290715,3.4357,145.53,145.5,0.0504556]
[1723733290919,37.99,145.57,145.51,3.4359]
[1723733291118,33.09,145.57,145.51,3.4359]
[1723733291319,33.09,145.57,145.5,33.1404556]
[1723733291526,33.09,145.57,145.5,36.5765556]
[1723733292024,3.4356,145.53,145.5,33.1404556]
[1723733292224,3.4356,145.53,145.5,36.5765556]
[1723733292419,3.4356,145.53,145.5,33.1404556]
[1723733292823,3.4356,145.53,145.5,36.5764556]
[1723733293021,3.4358,145.52,145.5,33.1404556]
[1723733293420,33.09,145.57,145.5,0.0504556]
[1723733293725,3.436,145.51,145.5,0.0504556]
[1723733295823,4.9,145.57,145.5,33.1404556]
[1723733296324,3.4356,145.53,145.5,33.1404556]
[1723733296525,10.08730569,145.58,145.51,3.4359]
[1723733296723,10.08730569,145.58,145.5,33.1404556]
[1723733297136,10.08730569,145.58,145.51,3.4358]
[1723733297430,10.08730569,145.58,145.53,0.05149934]
[1723733297823,8.40370569,145.58,145.53,0.05149934]
[1723733298122,3.4353,145.54,145.53,0.05149934]
[1723733299628,8.4639,145.59,145.53,0.05149934]
[1723733299827,6.882,145.59,145.53,0.05149934]
[1723733300021,3.4349,145.56,145.53,0.05149934]
[1723733300325,6.882,145.6,145.53,33.14149934]
[1723733300521,6.882,145.6,145.57,33.09]
[1723733301320,4.9,145.69,145.59,33.09]
[1723733301518,6.882,145.68,145.62,33.09]
[1723733301717,6.882,145.65,145.63,4.9]
[1723733301920,1.6234,145.73,145.64,33.09]
[1723733302121,38.49139367,145.74,145.66,33.09]
[1723733302325,95.61212233,146.0,145.57,0.05300103]
[1723733302326,10.2543,146.28,145.67,33.16]
[1723733302528,26.44370041,146.38,145.87,51.48612044]
[1723733302728,6.882,146.1,146.04,33.09]
[1723733302925,1.5613,146.29,145.87,51.48612044]
[1723733302926,6.882,146.08,145.87,51.48612044]
[1723733303130,6.882,146.03,145.88,13.45078995]
[1723733303323,6.882,146.03,145.89,22.08027519]
[1723733303623,6.882,146.03,145.9,38.26027519]
[1723733303624,3.4247,146.0,145.9,38.26027519]
[1723733303825,6.882,146.03,145.89,41.12]
[1723733303826,6.38,145.99,145.89,41.12]
[1723733304025,48.002,146.03,145.89,41.12]
[1723733304226,6.882,146.06,145.95,41.12]
[1723733304425,6.882,146.06,146.02,41.12]
[1723733305126,6.882,146.03,145.99,41.12]
[1723733305536,6.882,146.03,146.01,41.12]
[1723733306244,5.01222129,146.14,146.01,41.12]
[1723733306439,6.882,146.13,146.0,0.04791862]
[1723733306629,6.882,146.13,146.03,41.12]
[1723733306828,6.882,146.06,146.03,41.12]
[1723733307234,6.882,146.06,146.05,41.12]
[1723733307538,6.882,146.13,146.05,41.12]
[1723733307735,6.882,146.13,146.03,0.04549968]
[1723733307934,6.882,146.08,146.03,0.04549968]
[1723733308136,6.882,146.08,145.96,3.42510786]
[1723733308429,6.882,146.08,146.06,41.12]
[1723733308629,6.882,146.08,146.07,0.04604286]
[1723733308932,6.882,146.13,146.07,0.04604286]
[1723733309126,6.882,146.18,146.09,41.12]
[1723733309330,6.882,146.14,146.11,41.12]
[1723733309626,6.882,146.14,146.09,41.12]
[1723733310133,3.4218,146.12,146.09,41.12]
[1723733310330,6.882,146.13,146.11,0.05122162]
[1723733311124,6.882,146.13,146.11,41.17122162]
[1723733311326,6.68,146.25,146.11,41.17122162]
[1723733311535,6.882,146.21,146.15,41.12]
[1723733311744,6.882,146.21,146.17,41.12]
[1723733311938,6.882,146.18,146.17,41.12]
[1723733312831,6.882,146.18,146.15,41.12]
[1723733313035,6.882,146.2,146.17,41.12]
[1723733313333,6.882,146.2,146.19,41.12]
[1723733313536,3.2209,146.26,146.19,41.12]
[1723733313734,1.5889,146.26,146.19,41.12]
[1723733313941,6.882,146.25,146.15,3.49079838]
[1723733314139,6.882,146.25,146.21,49.25985249]
[1723733314331,6.882,146.25,146.21,0.04985249]
[1723733314526,3.4193,146.22,146.21,42.36785249]
[1723733314829,6.882,146.22,146.21,42.36785249]
[1723733315031,1.6626,146.33,146.21,42.36785249]
[1723733315242,6.882,146.23,146.21,3.47198467]
[1723733315537,6.882,146.23,146.12,49.21]
[1723733315538,1.6626,146.33,146.22,56.21]
[1723733315732,1.6626,146.33,146.22,49.21]
[1723733315926,0.05074407,146.28,146.26,0.05121934]
[1723733316327,6.882,146.27,146.26,0.05121934]
[1723733316538,3.48331509,146.4,146.26,52.70042885]
[1723733316735,3.4174,146.31,146.29,49.21]
[1723733317034,49.21,146.4,146.27,49.21]
[1723733317237,6.882,146.39,146.27,49.21]
[1723733317433,10.2994,146.3,146.29,0.04618716]
[1723733317934,6.882,146.28,146.24,52.59860776]
[1723733318139,6.882,146.28,146.24,49.21]
[1723733318434,6.882,146.28,146.26,0.04985089]
[1723733318935,6.882,146.28,146.27,49.21]
[1723733319139,6.882,146.34,146.26,0.04985089]
[1723733319337,0.04963494,146.28,146.26,0.04985089]
[1723733319933,3.4188,146.25,146.22,52.68531792]
[1723733320633,6.882,146.3,146.26,0.04655464]
[1723733320834,6.882,146.3,146.28,49.21]
[1723733321040,6.882,146.3,146.29,3.46711335]
[1723733321242,6.882,146.3,146.28,49.21]
[1723733321433,10.2768,146.44,146.28,49.21]
[1723733321634,10.2768,146.44,146.37,49.21]
[1723733321635,6.882,146.43,146.37,49.21]
[1723733321934,6.882,146.41,146.37,49.21]
[1723733322130,6.882,146.41,146.35,49.21]
[1723733322340,10.298,146.36,146.35,0.04725175]
[1723733323331,3.4166,146.34,146.3,49.21]
[1723733323532,6.882,146.4,146.3,49.21]
[1723733323745,6.882,146.4,146.3,52.6273]
[1723733323928,6.882,146.36,146.33,49.21]
[1723733324143,6.882,146.36,146.34,0.0510446]
[1723733324338,6.882,146.36,146.35,49.21]
[1723733324836,10.5968,146.44,146.34,0.0510446]
[1723733324837,6.882,146.43,146.34,0.0510446]
[1723733325035,10.2983,146.35,146.34,0.0510446]
[1723733325739,10.2983,146.35,146.33,49.21]
[1723733326051,0.0495238,146.36,146.33,49.21]
[1723733326231,0.0495238,146.36,146.31,49.21]
[1723733326430,6.882,146.35,146.33,0.04654231]
[1723733326638,67.98758682,146.46,146.34,98.42]
[1723733326639,6.882,146.46,146.34,98.42]
[1723733326841,6.882,146.46,146.4,49.21]
[1723733327137,6.882,146.41,146.4,49.21]
[1723733327542,6.882,146.41,146.37,49.21]
[1723733327735,6.882,146.41,146.39,49.21]
[1723733327944,6.882,146.43,146.39,49.21]
[1723733328237,6.882,146.43,146.42,42.318]
[1723733328442,1.4941,146.51,146.42,49.21]
[1723733328755,1.5415,146.56,146.46,49.21]
[1723733329041,7.3,146.74,146.55,38.11635594]
[1723733329242,2.9644,146.66,146.5,42.318]
[1723733329448,49.21,146.62,146.5,42.318]
[1723733329747,6.882,146.61,146.5,42.318]
[1723733329940,6.882,146.49,146.48,49.21]
[1723733330439,6.882,146.49,146.43,1.0]
[1723733330440,3.4142,146.44,146.43,1.0]
[1723733330744,56.51,146.48,146.27,49.21]
[1723733330940,59.6632,146.48,146.47,0.00234224]
[1723733331139,59.6632,146.48,146.27,49.21]
[1723733331340,6.882,146.47,146.3,3.33004057]
[1723733331539,3.4159,146.37,146.3,3.33004057]
[1723733331738,49.21,146.46,146.27,49.21]
[1723733331947,49.21,146.41,146.24,3.35907072]
[1723733332135,3.4186,146.25,146.24,3.35907072]
[1723733332449,56.092,146.38,146.24,52.56907072]
[1723733332450,7.64,146.35,146.24,52.56907072]
[1723733332744,7.64,146.35,146.31,0.05181455]
[1723733332745,0.04930969,146.34,146.31,0.05181455]
[1723733333248,3.417,146.32,146.31,0.05181455]
[1723733333445,7.64,146.35,146.24,49.21]
[1723733333648,7.64,146.35,146.2,49.21]
[1723733333649,49.21,146.33,146.2,49.21]
[1723733333848,7.64,146.32,146.21,3.4193]
[1723733334048,7.64,146.32,146.3,0.05002356]
[1723733334441,3.4172,146.31,146.3,0.05002356]
[1723733334647,3.4172,146.31,146.14,7.64]
[1723733334648,56.092,146.31,146.18,49.21]
[1723733334846,3.4194,146.22,146.18,49.21]
[1723733335140,56.092,146.31,146.18,49.21]
[1723733335345,3.4191,146.23,146.19,0.05171086]
[1723733335536,56.092,146.31,146.19,0.05171086]
[1723733335744,0.04414141,146.26,146.18,49.21]
[1723733336245,0.04414141,146.26,146.24,0.05259218]
[1723733336743,3.4191,146.23,146.18,52.6301]
[1723733336943,0.04414141,146.26,146.18,49.21]
[1723733337152,3.4186,146.25,146.24,0.04867242]
[1723733337851,7.64,146.26,146.16,49.21]
[1723733337852,3.4203,146.18,146.16,49.21]
[1723733338149,7.68978637,146.26,146.16,49.21]
[1723733338342,3.4197,146.21,146.16,49.21]
[1723733338654,7.64,146.25,146.18,49.21]
[1723733338942,3.4188,146.24,146.23,0.04491043]
[1723733339745,3.4202,146.19,146.14,7.64]
[1723733339942,3.4202,146.19,146.13,49.21]
[1723733340348,1.5417,146.27,146.16,49.21]
[1723733340349,3.4198,146.2,146.16,49.21]
[1723733340546,0.051687,146.23,146.16,49.21]
[1723733340949,1.5417,146.27,146.16,49.21]
[1723733341248,49.21,146.23,146.18,0.04851608]
[1723733341451,3.42,146.19,146.18,0.04851608]
[1723733342043,3.42,146.19,146.13,49.21]
[1723733342044,0.04541373,146.21,146.13,49.21]
[1723733342246,0.04541373,146.21,146.16,49.21]
[1723733342440,0.04541373,146.21,146.17,0.05185076]
[1723733342645,3.4204,146.18,146.17,0.05185076]
[1723733343144,3.4209,146.15,146.12,49.21]
[1723733343450,0.04642162,146.2,146.1,49.21]
[1723733343647,49.21,146.35,146.16,0.05243779]
[1723733343840,56.0454,146.29,146.16,0.05243779]
[1723733344040,56.0454,146.29,146.17,49.21]
[1723733344247,56.0454,146.29,146.17,52.6304]
[1723733344449,0.04982582,146.23,146.2,0.04764857]
[1723733344644,3.4195,146.21,146.2,0.04764857]
[1723733345053,3.4195,146.21,146.02,6.8479]
[1723733345054,0.04982582,146.23,146.1,49.21]
[1723733345244,52.5655711,146.25,146.1,49.21]
[1723733345245,6.882,146.24,146.1,49.21]
[1723733345446,6.882,146.24,146.12,49.21]
[1723733345647,3.4204,146.18,146.14,3.421]
[1723733345948,49.21,146.25,146.1,49.21]
[1723733345949,49.21,146.22,146.1,49.21]
[1723733346251,3.4213,146.14,146.1,52.632]
[1723733346446,6.882,146.21,146.1,49.21]
[1723733346844,0.04423754,146.17,146.15,0.05226402]
[1723733347243,3.4207,146.16,146.15,0.05226402]
[1723733347945,1.4605,146.3,146.15,49.26226402]
[1723733348249,0.04555959,146.17,146.15,0.05226402]
[1723733348451,49.21,146.2,146.08,52.68316756]
[1723733348648,49.21,146.2,146.08,49.21]
[1723733348849,3.40165815,146.24,146.05,49.21]
[1723733348850,3.4223,146.1,146.05,49.21]
[1723733349043,0.04523791,146.17,146.15,0.04963134]
[1723733349253,7.66,146.16,146.05,49.21]
[1723733349449,3.422,146.11,146.05,49.21]
[1723733349751,1.4895,146.17,146.05,49.21]
[1723733350053,1.4895,146.17,146.1,49.21]
[1723733350848,0.05140294,146.15,146.12,0.04410482]
[1723733351551,3.4212,146.14,146.07,49.21]
[1723733351954,3.4212,146.14,146.12,0.04816568]
[1723733352158,3.4214,146.13,146.12,0.04816568]
[1723733352460,0.04471432,146.15,146.09,3.4222]
[1723733352656,0.04471432,146.15,146.1,49.21]
[1723733352853,0.04471432,146.15,146.05,49.21]
[1723733352854,0.04471432,146.15,146.14,49.21]
[1723733353050,1.5015,146.24,146.14,56.87]
[1723733353255,1.5015,146.24,146.18,49.21]
[1723733353756,1.5015,146.24,146.18,52.6301]
[1723733353955,1.5015,146.24,146.18,49.21]
[1723733354854,0.04802023,146.22,146.2,0.04957266]
[1723733355059,0.04802023,146.22,146.2,49.25957266]